[Event "Polofinale MCR junioru 2023"]
[Site "Czech Republic"]
[Date "2023.11.13"]
[Round "3.2"]
[White "Hak, David"]
[Black "Davidek, Zdenek"]
[Result "1-0"]
[TimeControl "90 min per 40 moves + 15 min + 30 sec / move from move 1"]
[WhiteFideId "377007"]
[BlackFideId "23725001"]
[WhiteElo "2253"]
[BlackElo "2099"]

1. e4 {[%clk 01:30:16]} {[%emt 00:00:43]} e5 {[%clk 01:30:49]} {[%emt
00:00:10]} 2. Nf3 {[%clk 01:30:30]} {[%emt 00:00:17]} Nc6 {[%clk 01:31:13]}
{[%emt 00:00:05]} 3. d4 {[%clk 01:30:54]} {[%emt 00:00:06]} exd4 {[%clk
01:31:22]} {[%emt 00:00:21]} 4. Nxd4 {[%clk 01:31:17]} {[%emt 00:00:08]} Bc5
{[%clk 01:31:26]} {[%emt 00:00:26]} 5. Nb3 {[%clk 01:31:31]} {[%emt 00:00:16]}
Bb6 {[%clk 01:31:47]} {[%emt 00:00:08]} 6. Nc3 {[%clk 01:31:49]} {[%emt
00:00:13]} Nf6 {[%clk 01:31:54]} {[%emt 00:00:22]} 7. Bg5 {[%clk 01:27:01]}
{[%emt 00:05:19]} h6 {[%clk 01:31:49]} {[%emt 00:00:35]} 8. Bh4 {[%clk
01:27:24]} {[%emt 00:00:07]} d6 {[%clk 01:31:51]} {[%emt 00:00:28]} 9. Qe2
{[%clk 01:22:30]} {[%emt 00:05:24]} O-O {[%clk 01:26:40]} {[%emt 00:05:41]} 10.
O-O-O {[%clk 01:21:55]} {[%emt 00:01:05]} Be6 {[%clk 01:18:27]} {[%emt
00:08:43]} 11. Kb1 {[%clk 01:18:39]} {[%emt 00:03:46]} Re8 {[%clk 01:14:01]}
{[%emt 00:04:56]} 12. f3 {[%clk 01:16:50]} {[%emt 00:02:20]} Ne5 {[%clk
01:06:39]} {[%emt 00:07:51]} 13. g4 {[%clk 01:04:56]} {[%emt 00:12:23]} Ng6
{[%clk 00:39:51]} {[%emt 00:27:18]} 14. Bg3 {[%clk 01:03:22]} {[%emt 00:02:05]}
Qe7 {[%clk 00:39:33]} {[%emt 00:00:48]} 15. h4 {[%clk 01:01:00]} {[%emt
00:02:52]} Rad8 {[%clk 00:37:37]} {[%emt 00:02:25]} 16. Qh2 {[%clk 00:51:30]}
{[%emt 00:10:01]} Nh7 {[%clk 00:21:49]} {[%emt 00:16:17]} 17. Be2 {[%clk
00:47:37]} {[%emt 00:04:24]} Ne5 {[%clk 00:20:51]} {[%emt 00:01:29]} 18. g5
{[%clk 00:38:20]} {[%emt 00:09:47]} h5 {[%clk 00:19:32]} {[%emt 00:01:49]} 19.
Bxe5 {[%clk 00:37:52]} {[%emt 00:00:57]} dxe5 {[%clk 00:19:54]} {[%emt
00:00:08]} 20. Qxe5 {[%clk 00:37:57]} {[%emt 00:00:25]} Rxd1+ {[%clk 00:18:47]}
{[%emt 00:01:36]} 21. Rxd1 {[%clk 00:38:14]} {[%emt 00:00:13]} Nf8 {[%clk
00:17:09]} {[%emt 00:02:08]} 22. Qg3 {[%clk 00:35:20]} {[%emt 00:03:24]} a5
{[%clk 00:11:43]} {[%emt 00:05:57]} 23. f4 {[%clk 00:34:25]} {[%emt 00:01:25]}
a4 {[%clk 00:11:09]} {[%emt 00:01:04]} 24. Nxa4 {[%clk 00:33:43]} {[%emt
00:01:12]} Bxb3 {[%clk 00:11:02]} {[%emt 00:00:37]} 25. axb3 {[%clk 00:33:58]}
{[%emt 00:00:15]} Qxe4 {[%clk 00:11:23]} {[%emt 00:00:09]} 26. Bxh5 {[%clk
00:30:19]} {[%emt 00:04:09]} Be3 {[%clk 00:08:34]} {[%emt 00:03:19]} 27. Rf1
{[%clk 00:23:00]} {[%emt 00:07:49]} Qd4 {[%clk 00:04:48]} {[%emt 00:04:16]} 28.
f5 {[%clk 00:22:11]} {[%emt 00:01:19]} Re5 {[%clk 00:00:34]} {[%emt 00:04:45]}
29. Rd1 {[%clk 00:15:36]} {[%emt 00:07:04]} Qf4 {[%clk 00:00:41]} {[%emt
00:00:23]} 30. Qxf4 {[%clk 00:13:10]} Bxf4 {[%clk 00:01:10]} 31. Bg4 {[%clk
00:09:52]} {[%emt 00:03:48]} Bg3 {[%clk 00:01:15]} {[%emt 00:00:25]} 32. h5
{[%clk 00:09:28]} {[%emt 00:00:54]} g6 {[%clk 00:00:37]} {[%emt 00:01:09]} 33.
hxg6 {[%clk 00:04:54]} {[%emt 00:05:04]} fxg6 {[%emt 00:00:03]} 34. fxg6 {[%clk
00:04:33]} {[%emt 00:00:49]} Rxg5 {[%clk 00:01:15]} {[%emt 00:00:20]} 35. Bf3
{[%clk 00:04:33]} {[%emt 00:00:31]} b6 {[%clk 00:01:17]} {[%emt 00:00:28]} 36.
Nc3 {[%clk 00:01:40]} {[%emt 00:03:22]} Nxg6 {[%clk 00:01:19]} {[%emt
00:00:28]} 37. Ne4 {[%clk 00:01:40]} {[%emt 00:00:30]} Rf5 {[%clk 00:00:34]}
{[%emt 00:01:16]} 38. Bg4 {[%clk 00:01:55]} {[%emt 00:00:14]} Rf4 {[%clk
00:00:51]} {[%emt 00:00:13]} 39. Be6+ {[%clk 00:02:14]} {[%emt 00:00:11]} Kf8
{[%clk 00:01:09]} {[%emt 00:00:12]} 40. Nxg3 {[%clk 00:02:35]} {[%emt
00:00:08]} Ke7 {[%clk 00:01:29]} {[%emt 00:00:11]} 41. Bc4 {[%clk 00:02:26]}
{[%emt 00:00:39]} Ne5 {[%clk 00:01:44]} {[%emt 00:00:15]} 42. Re1 {[%clk
00:01:50]} {[%emt 00:01:06]} Kd6 {[%clk 00:01:41]} {[%emt 00:00:33]} 43. Bd3
{[%clk 00:01:42]} {[%emt 00:00:38]} Nxd3 {[%clk 00:01:39]} {[%emt 00:00:32]} 44.
cxd3 {[%clk 00:01:54]} {[%emt 00:00:19]} Rf3 {[%clk 00:01:48]} {[%emt
00:00:21]} 45. Ne4+ {[%clk 00:02:02]} {[%emt 00:00:21]} Kc6 {[%clk 00:02:06]}
{[%emt 00:00:11]} 46. Kc2 {[%clk 00:02:21]} {[%emt 00:00:12]} Rh3 {[%clk
00:02:26]} {[%emt 00:00:11]} 47. Kc3 {[%clk 00:02:39]} {[%emt 00:00:12]} Rh2
{[%clk 00:02:36]} {[%emt 00:00:19]} 48. Rf1 {[%clk 00:02:57]} {[%emt 00:00:12]}
Rg2 {[%clk 00:02:57]} {[%emt 00:00:09]} 49. b4 {[%clk 00:02:44]} {[%emt
00:00:42]} Rh2 {[%clk 00:03:16]} {[%emt 00:00:12]} 50. Rf6+ {[%clk 00:02:55]}
{[%emt 00:00:19]} Kb7 {[%clk 00:03:34]} {[%emt 00:00:12]} 51. b5 {[%clk
00:03:06]} {[%emt 00:00:19]} Rh5 {[%clk 00:03:52]} {[%emt 00:00:12]} 52. Rf7
{[%clk 00:03:29]} {[%emt 00:00:06]} Kb8 {[%clk 00:03:13]} {[%emt 00:01:10]} 53.
Kc4 {[%clk 00:03:35]} {[%emt 00:00:24]} Rh2 {[%clk 00:03:30]} {[%emt 00:00:13]}
54. b3 {[%clk 00:03:24]} {[%emt 00:00:41]} Rh4 {[%clk 00:03:45]} {[%emt
00:00:14]} 55. Kd5 {[%clk 00:03:01]} {[%emt 00:00:54]} Kb7 {[%clk 00:03:31]}
{[%emt 00:00:44]} 56. Nd6+ {[%clk 00:02:36]} {[%emt 00:00:54]} Kb8 {[%clk
00:03:52]} {[%emt 00:00:10]} 57. Ne8 {[%clk 00:01:14]} {[%emt 00:01:52]} Rh5+
{[%clk 00:03:56]} {[%emt 00:00:26]} 58. Kc4 {[%clk 00:01:30]} {[%emt 00:00:13]}
Rc5+ {[%clk 00:04:08]} {[%emt 00:00:18]} 59. Kb4 {[%clk 00:01:46]} {[%emt
00:00:14]} Rd5 {[%clk 00:02:28]} {[%emt 00:02:11]} 60. Nxc7 {[%clk 00:01:09]}
{[%emt 00:01:08]} Rxd3 {[%clk 00:02:50]} {[%emt 00:00:07]} 61. Ne6 {[%clk
00:01:00]} {[%emt 00:00:38]} Rd6 {[%clk 00:02:52]} {[%emt 00:00:29]} 62. Re7
{[%clk 00:01:05]} {[%emt 00:00:25]} Kc8 {[%clk 00:02:02]} {[%emt 00:01:19]} 63.
Kc4 {[%clk 00:01:26]} {[%emt 00:00:10]} Kb8 {[%clk 00:02:18]} {[%emt 00:00:14]}
64. Nd4 {[%clk 00:01:33]} {[%emt 00:00:23]} Rh6 {[%clk 00:02:35]} {[%emt
00:00:13]} 65. Re6 {[%clk 00:01:49]} {[%emt 00:00:14]} 1-0

[Event "Polofinale MCR junioru 2023"]
[Site "Czech Republic"]
[Date "2023.11.13"]
[Round "3.3"]
[White "Lang, Simon"]
[Black "Seidl, Jan"]
[Result "0-1"]
[TimeControl "90 min per 40 moves + 15 min + 30 sec / move from move 1"]
[WhiteFideId "23712449"]
[BlackFideId "23714522"]
[WhiteElo "2090"]
[BlackElo "2224"]

1. e4 {[%clk 01:30:24]} {[%emt 00:00:28]} e5 {[%clk 01:30:56]} {[%emt
00:00:12]} 2. Nf3 {[%clk 01:30:29]} {[%emt 00:00:25]} Nc6 {[%clk 01:31:21]}
{[%emt 00:00:05]} 3. Bb5 {[%clk 01:30:19]} {[%emt 00:00:39]} a6 {[%clk
01:31:39]} {[%emt 00:00:12]} 4. Bxc6 {[%clk 01:30:22]} {[%emt 00:00:27]} dxc6
{[%clk 01:32:02]} {[%emt 00:00:07]} 5. O-O {[%clk 01:30:21]} {[%emt 00:00:31]}
f6 {[%clk 01:32:23]} {[%emt 00:00:09]} 6. d4 {[%clk 01:29:45]} {[%emt
00:01:07]} exd4 {[%clk 01:31:36]} {[%emt 00:01:16]} 7. Nxd4 {[%clk 01:30:09]}
{[%emt 00:00:06]} c5 {[%clk 01:31:59]} {[%emt 00:00:08]} 8. Nb3 {[%clk
01:30:33]} {[%emt 00:00:06]} Qxd1 {[%clk 01:32:13]} {[%emt 00:00:16]} 9. Rxd1
{[%clk 01:30:57]} {[%emt 00:00:06]} Be6 {[%clk 01:32:18]} {[%emt 00:00:25]} 10.
Bf4 {[%clk 01:27:48]} {[%emt 00:03:39]} c4 {[%clk 01:32:15]} {[%emt 00:00:33]}
11. Nd4 {[%clk 01:26:16]} {[%emt 00:02:02]} O-O-O {[%clk 01:32:22]} {[%emt
00:00:23]} 12. Nc3 {[%clk 01:25:39]} {[%emt 00:01:07]} Bf7 {[%clk 01:32:25]}
{[%emt 00:00:27]} 13. Nf5 {[%clk 01:24:18]} {[%emt 00:01:51]} Re8 {[%clk
01:30:54]} {[%emt 00:02:01]} 14. Rd2 {[%clk 01:18:10]} {[%emt 00:06:37]} Ne7
{[%clk 01:21:33]} {[%emt 00:09:51]} 15. Ne3 {[%clk 01:08:26]} {[%emt 00:10:14]}
Ng6 {[%clk 01:18:31]} {[%emt 00:03:32]} 16. Bg3 {[%clk 01:08:48]} {[%emt
00:00:09]} Bb4 {[%clk 01:14:30]} {[%emt 00:04:30]} 17. f3 {[%clk 01:04:23]}
{[%emt 00:04:56]} Ne5 {[%clk 01:04:44]} {[%emt 00:10:15]} 18. Rad1 {[%clk
01:01:59]} {[%emt 00:02:54]} h5 {[%clk 00:46:56]} {[%emt 00:18:18]} 19. h3
{[%clk 00:46:16]} {[%emt 00:16:14]} Rd8 {[%clk 00:36:00]} {[%emt 00:11:26]} 20.
Kf2 {[%clk 00:43:41]} {[%emt 00:03:04]} Rxd2+ {[%clk 00:35:36]} {[%emt
00:00:54]} 21. Rxd2 {[%clk 00:44:06]} {[%emt 00:00:06]} Rd8 {[%clk 00:33:35]}
{[%emt 00:02:30]} 22. Rxd8+ {[%clk 00:39:34]} {[%emt 00:05:02]} Kxd8 {[%clk
00:34:02]} {[%emt 00:00:03]} 23. Bxe5 {[%clk 00:38:45]} {[%emt 00:01:19]} fxe5
{[%clk 00:34:30]} {[%emt 00:00:03]} 24. Kg3 {[%clk 00:38:57]} {[%emt 00:00:17]}
Bc5 {[%clk 00:32:16]} {[%emt 00:02:44]} 25. Nf1 {[%clk 00:34:37]} {[%emt
00:04:50]} g5 {[%clk 00:27:05]} {[%emt 00:05:41]} 26. h4 {[%clk 00:33:08]}
{[%emt 00:01:59]} Be7 {[%clk 00:27:08]} {[%emt 00:00:27]} 27. hxg5 {[%clk
00:33:01]} {[%emt 00:00:37]} Bxg5 {[%clk 00:27:37]} {[%emt 00:00:02]} 28. Ne2
{[%clk 00:31:57]} {[%emt 00:01:34]} b5 {[%clk 00:25:09]} {[%emt 00:02:58]} 29.
c3 {[%clk 00:31:05]} {[%emt 00:01:22]} a5 {[%clk 00:24:53]} {[%emt 00:00:46]}
30. f4 {[%clk 00:29:24]} {[%emt 00:02:10]} exf4+ {[%clk 00:25:15]} {[%emt
00:00:09]} 31. Nxf4 {[%clk 00:29:49]} {[%emt 00:00:05]} b4 {[%clk 00:25:05]}
{[%emt 00:00:40]} 32. e5 {[%clk 00:28:15]} {[%emt 00:02:03]} a4 {[%clk
00:24:14]} {[%emt 00:01:21]} 33. Ne2 {[%clk 00:24:47]} {[%emt 00:03:58]} a3
{[%clk 00:23:23]} {[%emt 00:01:22]} 34. bxa3 {[%clk 00:23:54]} {[%emt
00:01:22]} b3 {[%clk 00:23:45]} {[%emt 00:00:08]} 35. axb3 {[%clk 00:24:19]}
{[%emt 00:00:05]} cxb3 {[%clk 00:24:14]} {[%emt 00:00:01]} 36. Nf4 {[%clk
00:22:38]} {[%emt 00:02:11]} b2 {[%clk 00:20:20]} {[%emt 00:04:24]} 37. Nd2
{[%clk 00:22:58]} {[%emt 00:00:10]} Bd5 {[%clk 00:14:50]} {[%emt 00:06:00]} 38.
a4 {[%clk 00:20:50]} {[%emt 00:02:39]} h4+ {[%clk 00:12:09]} {[%emt 00:03:11]}
39. Kg4 {[%clk 00:21:02]} {[%emt 00:00:17]} Bxf4 {[%clk 00:12:19]} {[%emt
00:00:20]} 40. Kxf4 {[%clk 00:21:26]} {[%emt 00:00:06]} Bxg2 {[%clk 00:12:45]}
{[%emt 00:00:04]} 41. Kg4 {[%clk 00:21:43]} {[%emt 00:00:13]} Be4 {[%clk
00:06:53]} {[%emt 00:06:23]} 42. Kxh4 {[%clk 00:22:00]} {[%emt 00:00:13]} b1=Q
{[%clk 00:07:17]} {[%emt 00:00:05]} 43. Nxb1 {[%clk 00:22:24]} {[%emt
00:00:06]} Bxb1 {[%clk 00:07:43]} {[%emt 00:00:03]} 44. Kg5 {[%clk 00:22:12]}
{[%emt 00:00:43]} Ke7 {[%clk 00:07:51]} {[%emt 00:00:22]} 45. a5 {[%clk
00:22:21]} {[%emt 00:00:22]} Bd3 {[%clk 00:07:36]} {[%emt 00:00:44]} 46. Kf4
{[%clk 00:22:40]} {[%emt 00:00:12]} c5 {[%clk 00:07:00]} {[%emt 00:01:06]} 47.
Ke3 {[%clk 00:22:40]} {[%emt 00:00:29]} Ba6 {[%clk 00:07:19]} {[%emt 00:00:11]}
48. Kf4 {[%clk 00:22:15]} {[%emt 00:00:55]} Ke6 {[%clk 00:07:21]} {[%emt
00:00:29]} 49. Ke4 {[%clk 00:22:40]} {[%emt 00:00:04]} Bc4 {[%clk 00:07:07]}
{[%emt 00:00:44]} 50. Kf4 {[%clk 00:23:00]} {[%emt 00:00:11]} Bf1 {[%clk
00:05:35]} {[%emt 00:02:01]} 51. Ke4 {[%clk 00:23:19]} {[%emt 00:00:11]} Bb5
{[%clk 00:05:16]} {[%emt 00:00:49]} 52. Kf4 {[%clk 00:23:39]} {[%emt 00:00:10]}
Bc4 {[%clk 00:05:32]} {[%emt 00:00:14]} 53. Ke4 {[%clk 00:24:03]} {[%emt
00:00:06]} Bd5+ {[%clk 00:05:32]} {[%emt 00:00:30]} 54. Kf4 {[%clk 00:24:02]}
{[%emt 00:00:31]} Bb7 {[%clk 00:05:46]} {[%emt 00:00:16]} 0-1

[Event "Polofinale MCR junioru 2023"]
[Site "Czech Republic"]
[Date "2023.11.13"]
[Round "3.4"]
[White "Vilimek, Vit"]
[Black "Mach, Petr"]
[Result "1-0"]
[TimeControl "90 min per 40 moves + 15 min + 30 sec / move from move 1"]
[WhiteFideId "23718218"]
[BlackFideId "383546"]
[WhiteElo "2163"]
[BlackElo "2084"]

1. e4 {[%clk 01:26:28]} {[%emt 00:04:31]} e6 {[%clk 01:30:49]} {[%emt
00:00:12]} 2. Nf3 {[%clk 01:26:51]} {[%emt 00:00:05]} d5 {[%clk 01:31:08]}
{[%emt 00:00:12]} 3. e5 {[%clk 01:27:19]} {[%emt 00:00:02]} c5 {[%clk
01:31:32]} {[%emt 00:00:06]} 4. b4 {[%clk 01:27:46]} {[%emt 00:00:03]} d4
{[%clk 01:30:52]} {[%emt 00:01:10]} 5. c3 {[%clk 01:27:44]} {[%emt 00:00:32]}
cxb4 {[%clk 01:31:11]} {[%emt 00:00:11]} 6. cxd4 {[%clk 01:27:18]} {[%emt
00:00:56]} Nc6 {[%clk 01:31:30]} {[%emt 00:00:11]} 7. Bb2 {[%clk 01:24:56]}
{[%emt 00:02:51]} Nge7 {[%clk 01:31:55]} {[%emt 00:00:06]} 8. a3 {[%clk
01:23:58]} {[%emt 00:01:28]} Nd5 {[%clk 01:19:36]} {[%emt 00:12:49]} 9. Be2
{[%clk 01:15:33]} {[%emt 00:08:56]} Nf4 {[%clk 01:00:29]} {[%emt 00:19:37]} 10.
O-O {[%clk 01:15:56]} {[%emt 00:00:07]} Nxe2+ {[%clk 01:00:40]} {[%emt
00:00:19]} 11. Qxe2 {[%clk 01:16:24]} {[%emt 00:00:02]} a5 {[%clk 00:59:34]}
{[%emt 00:01:35]} 12. Qe4 {[%clk 01:05:56]} {[%emt 00:10:57]} Qd5 {[%clk
00:57:28]} {[%emt 00:02:37]} 13. Qxd5 {[%clk 01:01:59]} {[%emt 00:04:28]} exd5
{[%emt 00:01:02]} 14. axb4 {[%clk 00:59:41]} {[%emt 00:02:47]} Bxb4 {[%clk
00:56:32]} {[%emt 00:00:54]} 15. Nc3 {[%clk 00:59:51]} {[%emt 00:00:19]} Be6
{[%clk 00:56:16]} {[%emt 00:00:47]} 16. Nb5 {[%clk 00:42:03]} {[%emt 00:18:18]}
Kd7 {[%clk 00:49:01]} {[%emt 00:07:45]} 17. Ba3 {[%clk 00:35:16]} {[%emt
00:07:18]} Bg4 {[%clk 00:32:24]} {[%emt 00:17:06]} 18. Bxb4 {[%clk 00:26:57]}
{[%emt 00:08:50]} axb4 {[%clk 00:32:49]} {[%emt 00:00:05]} 19. Rac1 {[%clk
00:20:21]} {[%emt 00:07:05]} Bxf3 {[%clk 00:32:54]} {[%emt 00:00:25]} 20. gxf3
{[%clk 00:18:57]} {[%emt 00:01:55]} b6 {[%clk 00:17:18]} {[%emt 00:16:05]} 21.
Rc2 {[%clk 00:12:03]} {[%emt 00:07:24]} Rac8 {[%clk 00:03:51]} {[%emt
00:13:57]} 22. Rb1 {[%clk 00:06:00]} {[%emt 00:06:33]} Nxe5 {[%clk 00:01:11]}
{[%emt 00:03:10]} 23. Rxc8 {[%clk 00:06:11]} {[%emt 00:00:19]} Nxf3+ {[%clk
00:01:32]} {[%emt 00:00:09]} 24. Kg2 {[%clk 00:06:37]} {[%emt 00:00:03]} Nh4+
{[%clk 00:01:59]} {[%emt 00:00:04]} 25. Kh3 {[%clk 00:06:51]} {[%emt 00:00:15]}
Rxc8 {[%clk 00:02:16]} {[%emt 00:00:14]} 26. Kxh4 {[%clk 00:07:05]} {[%emt
00:00:17]} Rc4 {[%clk 00:02:30]} {[%emt 00:00:15]} 27. d3 {[%clk 00:06:50]}
{[%emt 00:00:45]} Rc2 {[%clk 00:02:58]} {[%emt 00:00:02]} 28. Rxb4 {[%clk
00:04:34]} {[%emt 00:02:46]} Rxf2 {[%clk 00:03:17]} {[%emt 00:00:11]} 29. Kg3
{[%clk 00:04:59]} {[%emt 00:00:05]} Rc2 {[%clk 00:02:31]} {[%emt 00:01:13]} 30.
Rb3 {[%clk 00:03:51]} {[%emt 00:01:41]} Kc6 {[%clk 00:02:19]} {[%emt 00:00:41]}
31. Nc3 {[%clk 00:02:38]} {[%emt 00:01:43]} Rd2 {[%clk 00:02:14]} {[%emt
00:00:32]} 32. Na4 {[%clk 00:02:44]} {[%emt 00:00:28]} b5 {[%clk 00:02:37]}
{[%emt 00:00:08]} 33. Nc5 {[%clk 00:03:03]} {[%emt 00:00:10]} Ra2 {[%clk
00:02:25]} {[%emt 00:00:42]} 34. Rb1 {[%clk 00:02:57]} {[%emt 00:00:36]} Kb6
{[%clk 00:02:16]} {[%emt 00:00:37]} 35. h3 {[%clk 00:01:58]} {[%emt 00:01:31]}
f6 {[%clk 00:02:10]} {[%emt 00:00:37]} 36. Ne6 {[%clk 00:01:28]} {[%emt
00:00:59]} Rd2 {[%clk 00:02:13]} {[%emt 00:00:25]} 37. Nf4 {[%clk 00:01:19]}
{[%emt 00:00:40]} Ka5 {[%clk 00:01:19]} {[%emt 00:01:26]} 38. Ra1+ {[%clk
00:00:39]} {[%emt 00:01:10]} Kb4 {[%clk 00:01:45]} {[%emt 00:00:03]} 39. Nxd5+
{[%clk 00:00:35]} {[%emt 00:00:34]} Kb3 {[%clk 00:02:11]} {[%emt 00:00:03]} 40.
Rb1+ {[%clk 00:00:41]} {[%emt 00:00:25]} Kc2 {[%emt 00:09:28]} 41. Rxb5 {[%clk
00:07:09]} {[%emt 00:00:12]} Rxd3+ {[%clk 00:18:28]} {[%emt 00:00:05]} 42. Kf2
{[%clk 00:04:46]} {[%emt 00:02:52]} Rxd4 {[%clk 00:17:56]} {[%emt 00:01:02]} 43.
Ne3+ {[%clk 00:04:37]} {[%emt 00:00:39]} Kc3 {[%clk 00:14:17]} {[%emt
00:04:09]} 44. Rb7 {[%clk 00:04:29]} {[%emt 00:00:39]} Rd2+ {[%clk 00:09:49]}
{[%emt 00:04:58]} 45. Kf3 {[%clk 00:04:13]} {[%emt 00:00:45]} Rh2 {[%clk
00:10:09]} {[%emt 00:00:10]} 46. Kg3 {[%clk 00:04:25]} {[%emt 00:00:18]} Re2
{[%clk 00:10:28]} {[%emt 00:00:09]} 47. Ng2 {[%clk 00:04:38]} {[%emt 00:00:20]}
g5 {[%clk 00:07:42]} {[%emt 00:03:16]} 48. Rxh7 {[%clk 00:04:29]} {[%emt
00:00:38]} f5 {[%clk 00:06:32]} {[%emt 00:01:41]} 49. Rc7+ {[%clk 00:04:03]}
{[%emt 00:00:55]} Kd4 {[%clk 00:05:56]} {[%emt 00:01:07]} 50. Rd7+ {[%clk
00:04:31]} {[%emt 00:00:02]} Kc3 {[%clk 00:04:38]} {[%emt 00:01:48]} 51. Rd5
{[%clk 00:04:22]} {[%emt 00:00:39]} g4 {[%clk 00:02:54]} {[%emt 00:02:15]} 52.
h4 {[%clk 00:04:40]} {[%emt 00:00:11]} f4 {[%clk 00:03:11]} {[%emt 00:00:13]}
53. Nxf4 {[%clk 00:04:56]} {[%emt 00:00:13]} 1-0

[Event "Polofinale MCR junioru 2023"]
[Site "Czech Republic"]
[Date "2023.11.13"]
[Round "3.5"]
[White "Hurtik, Matej"]
[Black "Jirasko, Miroslav"]
[Result "1/2-1/2"]
[TimeControl "90 min per 40 moves + 15 min + 30 sec / move from move 1"]
[WhiteFideId "397997"]
[BlackFideId "23729414"]
[WhiteElo "2131"]
[BlackElo "2084"]

1. e4 {[%clk 01:30:02]} {[%emt 00:00:57]} c5 {[%clk 01:30:46]} {[%emt
00:00:06]} 2. Nf3 {[%clk 01:30:15]} {[%emt 00:00:25]} Nc6 {[%clk 01:31:00]}
{[%emt 00:00:17]} 3. d4 {[%clk 01:30:36]} {[%emt 00:00:08]} cxd4 {[%clk
01:31:27]} {[%emt 00:00:04]} 4. Nxd4 {[%clk 01:31:00]} {[%emt 00:00:06]} e5
{[%clk 01:31:53]} {[%emt 00:00:04]} 5. Nb5 {[%clk 01:31:23]} {[%emt 00:00:08]}
d6 {[%clk 01:32:19]} {[%emt 00:00:03]} 6. N1c3 {[%clk 01:31:46]} {[%emt
00:00:07]} a6 {[%clk 01:32:45]} {[%emt 00:00:05]} 7. Na3 {[%clk 01:32:08]}
{[%emt 00:00:07]} Be7 {[%clk 01:32:57]} {[%emt 00:00:18]} 8. Nd5 {[%clk
01:25:15]} {[%emt 00:07:23]} Nf6 {[%clk 01:33:13]} {[%emt 00:00:14]} 9. Nxf6+
{[%clk 01:16:33]} {[%emt 00:09:12]} Bxf6 {[%clk 01:33:37]} {[%emt 00:00:07]} 10.
Nc4 {[%clk 01:16:22]} {[%emt 00:00:40]} O-O {[%clk 01:34:01]} {[%emt 00:00:06]}
11. Be3 {[%clk 01:09:13]} {[%emt 00:07:39]} Be6 {[%clk 01:18:10]} {[%emt
00:16:22]} 12. Bb6 {[%clk 01:05:55]} {[%emt 00:03:48]} Qe7 {[%clk 01:17:41]}
{[%emt 00:00:58]} 13. Qxd6 {[%clk 01:04:58]} {[%emt 00:01:27]} 1/2-1/2

[Event "Polofinale MCR junioru 2023"]
[Site "Czech Republic"]
[Date "2023.11.13"]
[Round "3.6"]
[White "Vojta, Jakub"]
[Black "Mametev, Artem"]
[Result "1/2-1/2"]
[TimeControl "90 min per 40 moves + 15 min + 30 sec / move from move 1"]
[WhiteFideId "382515"]
[BlackFideId "23710195"]
[WhiteElo "2267"]
[BlackElo "2024"]

1. c4 {[%clk 01:30:49]} {[%emt 00:00:11]} Nf6 {[%clk 01:30:53]} {[%emt
00:00:07]} 2. g3 {[%clk 01:31:06]} {[%emt 00:00:13]} g6 {[%clk 01:31:13]}
{[%emt 00:00:11]} 3. Bg2 {[%clk 01:31:32]} {[%emt 00:00:03]} Bg7 {[%clk
01:31:26]} {[%emt 00:00:16]} 4. Nc3 {[%clk 01:31:58]} {[%emt 00:00:05]} O-O
{[%clk 01:31:47]} {[%emt 00:00:09]} 5. e4 {[%clk 01:32:16]} {[%emt 00:00:12]}
d6 {[%clk 01:30:55]} {[%emt 00:01:21]} 6. Nge2 {[%clk 01:30:38]} {[%emt
00:02:08]} c5 {[%clk 01:26:37]} {[%emt 00:04:49]} 7. O-O {[%clk 01:30:57]}
{[%emt 00:00:11]} Nc6 {[%clk 01:26:56]} {[%emt 00:00:11]} 8. d3 {[%clk
01:31:16]} {[%emt 00:00:11]} Rb8 {[%clk 01:25:00]} {[%emt 00:02:26]} 9. h3
{[%clk 01:31:18]} {[%emt 00:00:28]} a6 {[%clk 01:25:02]} {[%emt 00:00:28]} 10.
a4 {[%clk 01:31:46]} {[%emt 00:00:02]} Bd7 {[%clk 01:16:53]} {[%emt 00:08:40]}
11. Be3 {[%clk 01:31:32]} {[%emt 00:00:43]} Ne8 {[%clk 01:11:39]} {[%emt
00:05:45]} 12. d4 {[%clk 01:25:45]} {[%emt 00:06:16]} cxd4 {[%clk 01:11:02]}
{[%emt 00:01:08]} 13. Nxd4 {[%clk 01:23:05]} {[%emt 00:03:09]} Nc7 {[%clk
01:10:03]} {[%emt 00:01:28]} 14. a5 {[%clk 01:05:30]} {[%emt 00:18:05]} Bxd4
{[%clk 00:42:58]} {[%emt 00:27:36]} 15. Bxd4 {[%clk 01:05:53]} {[%emt
00:00:07]} Nxd4 {[%clk 00:43:13]} {[%emt 00:00:15]} 16. Qxd4 {[%clk 01:06:20]}
{[%emt 00:00:03]} b5 {[%clk 00:37:06]} {[%emt 00:06:38]} 17. axb6 {[%clk
01:06:46]} {[%emt 00:00:03]} Ne6 {[%clk 00:37:31]} {[%emt 00:00:05]} 18. Qe3
{[%clk 01:00:31]} {[%emt 00:06:45]} Rxb6 {[%clk 00:34:58]} {[%emt 00:03:03]} 19.
Nd5 {[%clk 01:00:27]} {[%emt 00:00:34]} Rxb2 {[%clk 00:34:45]} {[%emt
00:00:44]} 20. Rxa6 {[%clk 01:00:54]} {[%emt 00:00:03]} Nc7 {[%clk 00:34:43]}
{[%emt 00:00:31]} 21. Ra7 {[%clk 01:01:07]} {[%emt 00:00:16]} Nxd5 {[%clk
00:30:29]} {[%emt 00:04:45]} 22. cxd5 {[%clk 00:55:29]} {[%emt 00:06:08]} Rc2
{[%clk 00:19:25]} {[%emt 00:11:33]} 23. Rb1 {[%clk 00:55:56]} {[%emt 00:00:03]}
Qc8 {[%clk 00:15:28]} {[%emt 00:04:28]} 24. Rbb7 {[%clk 00:52:42]} {[%emt
00:03:44]} Bxh3 {[%clk 00:13:31]} {[%emt 00:02:28]} 25. Rxe7 {[%clk 00:52:36]}
{[%emt 00:00:35]} Rc1+ {[%clk 00:13:41]} {[%emt 00:00:21]} 26. Kh2 {[%clk
00:53:00]} {[%emt 00:00:05]} Bxg2 {[%clk 00:14:00]} {[%emt 00:00:11]} 27. Kxg2
{[%clk 00:53:26]} {[%emt 00:00:04]} Qc4 {[%clk 00:14:13]} {[%emt 00:00:17]} 28.
Qf3 {[%clk 00:37:28]} {[%emt 00:16:28]} Qf1+ {[%clk 00:13:59]} {[%emt
00:00:43]} 29. Kh2 {[%clk 00:37:56]} {[%emt 00:00:02]} Rc2 {[%clk 00:12:21]}
{[%emt 00:02:08]} 30. Rxf7 {[%clk 00:38:21]} {[%emt 00:00:06]} Rxf2+ {[%clk
00:12:20]} {[%emt 00:00:31]} 31. Qxf2 {[%clk 00:38:46]} {[%emt 00:00:05]} Qxf2+
{[%clk 00:12:47]} {[%emt 00:00:03]} 32. Rxf2 {[%clk 00:39:09]} {[%emt
00:00:08]} Rxf2+ {[%clk 00:13:14]} {[%emt 00:00:02]} 33. Kh3 {[%clk 00:39:31]}
{[%emt 00:00:07]} Rf7 {[%clk 00:11:38]} {[%emt 00:02:07]} 1/2-1/2